[Event "Titled Tuesday Blitz August 15 Early 2023"]
[White "Vafin, Ayrat"]
[Black "Camilla_Lee"]
[WhiteFideId "4146530"]
[WhiteElo "2384"]
[BlackElo "2520"]
[Result "1/2-1/2"]
[Round "3"]
[TimeControl "180+1"]
[Date "2023.08.15"]
[WhiteClock "0:00:10"]
[BlackClock "0:00:20"]
[Board "175"]

1. Nf3 {[%clk 0:02:59]}  d5 {[%clk 0:02:59]} 2. g3 {[%clk 0:02:59]}  Nf6 {[%clk 0:03:00]} 3. Bg2 {[%clk 0:02:59]}  c6 {[%clk 0:03:00]} 4. O-O {[%clk 0:02:59]}  Bg4 {[%clk 0:03:01]} 5. d4 {[%clk 0:02:58]}  e6 {[%clk 0:03:00]} 6. Nbd2 {[%clk 0:02:59]}  Nbd7 {[%clk 0:03:00]} 7. Re1 {[%clk 0:02:59]}  Be7 {[%clk 0:03:00]} 8. e4 {[%clk 0:02:59]}  dxe4 {[%clk 0:02:54]} 9. Nxe4 {[%clk 0:03:00]}  Nxe4 {[%clk 0:02:54]} 10. Rxe4 {[%clk 0:03:01]}  Bf5 {[%clk 0:02:54]} 11. Re1 {[%clk 0:03:01]}  h6 {[%clk 0:02:53]} 12. c3 {[%clk 0:03:01]}  O-O {[%clk 0:02:53]} 13. Qb3 {[%clk 0:02:59]}  Qb6 {[%clk 0:02:52]} 14. Be3 {[%clk 0:02:55]}  Qxb3 {[%clk 0:02:44]} 15. axb3 {[%clk 0:02:56]}  a6 {[%clk 0:02:44]} 16. b4 {[%clk 0:02:56]}  Nf6 {[%clk 0:02:43]} 17. Ne5 {[%clk 0:02:52]}  Nd5 {[%clk 0:02:43]} 18. Nc4 {[%clk 0:02:49]}  Bd3 {[%clk 0:02:34]} 19. Na5 {[%clk 0:02:47]}  Ra7 {[%clk 0:02:02]} 20. Bd2 {[%clk 0:02:28]}  Rd8 {[%clk 0:01:55]} 21. Nb3 {[%clk 0:02:15]}  Nb6 {[%clk 0:01:40]} 22. Nc5 {[%clk 0:02:05]}  Bf5 {[%clk 0:01:33]} 23. Bf1 {[%clk 0:01:58]}  Nd5 {[%clk 0:01:22]} 24. Bc4 {[%clk 0:01:40]}  Bf6 {[%clk 0:01:21]} 25. Kg2 {[%clk 0:01:20]}  Nb6 {[%clk 0:01:16]} 26. Be2 {[%clk 0:01:12]}  Nd7 {[%clk 0:01:12]} 27. Bf4 {[%clk 0:01:10]}  Nxc5 {[%clk 0:01:03]} 28. bxc5 {[%clk 0:01:11]}  Be4+ {[%clk 0:00:59]} 29. f3 {[%clk 0:01:08]}  Bc2 {[%clk 0:00:53]} 30. Bc4 {[%clk 0:01:07]}  Raa8 {[%clk 0:00:48]} 31. h4 {[%clk 0:01:01]}  g5 {[%clk 0:00:47]} 32. hxg5 {[%clk 0:01:01]}  hxg5 {[%clk 0:00:46]} 33. Be5 {[%clk 0:01:00]}  Kg7 {[%clk 0:00:45]} 34. Re2 {[%clk 0:00:36]}  Bg6 {[%clk 0:00:43]} 35. Rh1 {[%clk 0:00:35]}  Rh8 {[%clk 0:00:42]} 36. Rxh8 {[%clk 0:00:35]}  Rxh8 {[%clk 0:00:43]} 37. Bxf6+ {[%clk 0:00:33]}  Kxf6 {[%clk 0:00:43]} 38. Re1 {[%clk 0:00:32]}  Re8 {[%clk 0:00:36]} 39. Re5 {[%clk 0:00:29]}  Rh8 {[%clk 0:00:35]} 40. Re1 {[%clk 0:00:29]}  Bf5 {[%clk 0:00:24]} 41. b4 {[%clk 0:00:25]}  Bg6 {[%clk 0:00:24]} 42. Bb3 {[%clk 0:00:18]}  Re8 {[%clk 0:00:23]} 43. Bc4 {[%clk 0:00:18]}  e5 {[%clk 0:00:21]} 44. dxe5+ {[%clk 0:00:17]}  Rxe5 {[%clk 0:00:22]} 45. Rxe5 {[%clk 0:00:17]}  Kxe5 {[%clk 0:00:22]} 46. Kf2 {[%clk 0:00:18]}  f6 {[%clk 0:00:22]} 47. Ke3 {[%clk 0:00:18]}  Bc2 {[%clk 0:00:20]} 48. f4+ {[%clk 0:00:18]}  gxf4+ {[%clk 0:00:20]} 49. gxf4+ {[%clk 0:00:19]}  Kf5 {[%clk 0:00:21]} 50. Bg8 {[%clk 0:00:19]}  Bd1 {[%clk 0:00:18]} 51. Bh7+ {[%clk 0:00:16]}  Ke6 {[%clk 0:00:18]} 52. Bg8+ {[%clk 0:00:17]}  Ke7 {[%clk 0:00:18]} 53. Kd4 {[%clk 0:00:17]}  Bg4 {[%clk 0:00:17]} 54. Bh7 {[%clk 0:00:16]}  Be6 {[%clk 0:00:16]} 55. Ke4 {[%clk 0:00:16]}  Kf7 {[%clk 0:00:16]} 56. Bf5 {[%clk 0:00:15]}  Ke7 {[%clk 0:00:14]} 57. Bxe6 {[%clk 0:00:14]}  Kxe6 {[%clk 0:00:15]} 58. f5+ {[%clk 0:00:15]}  Kf7 {[%clk 0:00:15]} 59. Kf4 {[%clk 0:00:15]}  Kg7 {[%clk 0:00:15]} 60. Kg4 {[%clk 0:00:16]}  Kh6 {[%clk 0:00:15]} 61. Kh4 {[%clk 0:00:16]}  Kg7 {[%clk 0:00:16]} 62. Kh5 {[%clk 0:00:17]}  Kh7 {[%clk 0:00:16]} 63. Kg4 {[%clk 0:00:17]}  Kh6 {[%clk 0:00:17]} 64. Kh4 {[%clk 0:00:17]}  Kg7 {[%clk 0:00:17]} 65. Kg4 {[%clk 0:00:17]}  Kh7 {[%clk 0:00:18]} 66. Kf4 {[%clk 0:00:16]}  Kh6 {[%clk 0:00:19]} 67. Kg4 {[%clk 0:00:17]}  Kg7 {[%clk 0:00:19]} 68. Kh5 {[%clk 0:00:16]}  Kh7 {[%clk 0:00:19]} 69. c4 {[%clk 0:00:13]}  Kg7 {[%clk 0:00:18]} 70. Kh4 {[%clk 0:00:12]}  Kh6 {[%clk 0:00:19]} 71. Kg4 {[%clk 0:00:12]}  Kh7 {[%clk 0:00:19]} 72. Kh5 {[%clk 0:00:08]}  Kg7 {[%clk 0:00:19]} 73. Kg4 {[%clk 0:00:09]}  Kh6 {[%clk 0:00:20]} 74. Kh4 {[%clk 0:00:09]}  Kh7 {[%clk 0:00:20]} 75. Kh5 {[%clk 0:00:10]} 1/2-1/2


[Site "https://www.chess.com"]

[Event "Titled Tuesday Blitz August 15 Early 2023"]
[White "Iunusovnuriddin"]
[Black "Lehtosaari, Mauri"]
[BlackFideId "501999"]
[WhiteElo "2324"]
[BlackElo "2510"]
[Result "1/2-1/2"]
[Round "3"]
[TimeControl "180+1"]
[Date "2023.08.15"]
[WhiteClock "0:00:04"]
[BlackClock "0:00:02"]
[Board "176"]

1. e4 {[%clk 0:03:00]}  d5 {[%clk 0:02:53]} 2. exd5 {[%clk 0:03:00]}  Qxd5 {[%clk 0:02:54]} 3. Nc3 {[%clk 0:03:01]}  Qd8 {[%clk 0:02:54]} 4. d3 {[%clk 0:02:56]}  Nf6 {[%clk 0:02:52]} 5. g3 {[%clk 0:02:56]}  Bg4 {[%clk 0:02:50]} 6. Qd2 {[%clk 0:02:43]}  c5 {[%clk 0:02:36]} 7. Bg2 {[%clk 0:02:40]}  Nc6 {[%clk 0:02:36]} 8. h3 {[%clk 0:02:27]}  Bd7 {[%clk 0:02:17]} 9. Nge2 {[%clk 0:02:23]}  g6 {[%clk 0:02:11]} 10. O-O {[%clk 0:02:02]}  Bg7 {[%clk 0:02:11]} 11. Ne4 {[%clk 0:02:03]}  b6 {[%clk 0:02:08]} 12. Nxf6+ {[%clk 0:01:54]}  exf6 {[%clk 0:01:47]} 13. Qe3+ {[%clk 0:01:47]}  Qe7 {[%clk 0:01:45]} 14. Qxe7+ {[%clk 0:01:27]}  Kxe7 {[%clk 0:01:46]} 15. Re1 {[%clk 0:01:28]}  Kd8 {[%clk 0:01:39]} 16. c3 {[%clk 0:01:15]}  Re8 {[%clk 0:01:35]} 17. Bf4 {[%clk 0:01:06]}  g5 {[%clk 0:01:29]} 18. Be3 {[%clk 0:00:54]}  Rc8 {[%clk 0:01:24]} 19. d4 {[%clk 0:00:53]}  c4 {[%clk 0:01:20]} 20. g4 {[%clk 0:00:49]}  Ne7 {[%clk 0:01:12]} 21. Ng3 {[%clk 0:00:49]}  Bc6 {[%clk 0:01:06]} 22. Bxc6 {[%clk 0:00:37]}  Rxc6 {[%clk 0:01:05]} 23. a4 {[%clk 0:00:33]}  Nd5 {[%clk 0:00:53]} 24. Bd2 {[%clk 0:00:32]}  Rce6 {[%clk 0:00:52]} 25. Nf5 {[%clk 0:00:21]}  Bf8 {[%clk 0:00:51]} 26. Ne3 {[%clk 0:00:21]}  Nxe3 {[%clk 0:00:36]} 27. Rxe3 {[%clk 0:00:22]}  Rxe3 {[%clk 0:00:32]} 28. Bxe3 {[%clk 0:00:23]}  Kd7 {[%clk 0:00:33]} 29. Kg2 {[%clk 0:00:21]}  Kd6 {[%clk 0:00:26]} 30. Kf3 {[%clk 0:00:21]}  Kd5 {[%clk 0:00:27]} 31. Rh1 {[%clk 0:00:18]}  h6 {[%clk 0:00:24]} 32. Re1 {[%clk 0:00:16]}  Re6 {[%clk 0:00:24]} 33. Bd2 {[%clk 0:00:15]}  Rxe1 {[%clk 0:00:24]} 34. Bxe1 {[%clk 0:00:15]}  a6 {[%clk 0:00:24]} 35. Bd2 {[%clk 0:00:15]}  Bd6 {[%clk 0:00:23]} 36. Ke2 {[%clk 0:00:14]}  Ke4 {[%clk 0:00:22]} 37. f3+ {[%clk 0:00:13]}  Kd5 {[%clk 0:00:22]} 38. Kd1 {[%clk 0:00:13]}  Ke6 {[%clk 0:00:21]} 39. Kc2 {[%clk 0:00:13]}  f5 {[%clk 0:00:21]} 40. b3 {[%clk 0:00:10]}  b5 {[%clk 0:00:20]} 41. axb5 {[%clk 0:00:09]}  axb5 {[%clk 0:00:21]} 42. bxc4 {[%clk 0:00:10]}  bxc4 {[%clk 0:00:22]} 43. Kb2 {[%clk 0:00:11]}  fxg4 {[%clk 0:00:22]} 44. hxg4 {[%clk 0:00:07]}  f5 {[%clk 0:00:21]} 45. Kc2 {[%clk 0:00:07]}  fxg4 {[%clk 0:00:16]} 46. fxg4 {[%clk 0:00:08]}  Kd5 {[%clk 0:00:15]} 47. Kd1 {[%clk 0:00:09]}  Ke4 {[%clk 0:00:16]} 48. Ke2 {[%clk 0:00:10]}  Bg3 {[%clk 0:00:14]} 49. Bc1 {[%clk 0:00:09]}  Bf4 {[%clk 0:00:08]} 50. Ba3 {[%clk 0:00:10]}  Bc7 {[%clk 0:00:04]} 51. Bc1 {[%clk 0:00:06]}  Bf4 {[%clk 0:00:03]} 52. Ba3 {[%clk 0:00:06]}  Bc7 {[%clk 0:00:01]} 53. Bc1 {[%clk 0:00:06]}  Bb8 {[%clk 0:00:02]} 54. Bd2 {[%clk 0:00:04]}  Bc7 {[%clk 0:00:02]} 55. Bc1 {[%clk 0:00:04]} 1/2-1/2


[Site "https://www.chess.com"]

[Event "Titled Tuesday Blitz August 15 Early 2023"]
[White "Kovalevsky, Stanislav"]
[Black "Dilmukhametov, Artur"]
[WhiteFideId "13508598"]
[BlackFideId "24179922"]
[WhiteElo "2509"]
[BlackElo "2300"]
[Result "1-0"]
[Round "3"]
[TimeControl "180+1"]
[Date "2023.08.15"]
[WhiteClock "0:00:29"]
[BlackClock "0:00:00"]
[Board "177"]

1. c4 {[%clk 0:03:00]}  Nf6 {[%clk 0:02:58]} 2. Nc3 {[%clk 0:03:00]}  g6 {[%clk 0:02:58]} 3. g3 {[%clk 0:02:59]}  d6 {[%clk 0:02:58]} 4. Bg2 {[%clk 0:02:59]}  Bg7 {[%clk 0:02:59]} 5. e4 {[%clk 0:03:00]}  e5 {[%clk 0:02:59]} 6. Nge2 {[%clk 0:03:01]}  O-O {[%clk 0:02:59]} 7. O-O {[%clk 0:03:01]}  Nbd7 {[%clk 0:02:55]} 8. h3 {[%clk 0:02:58]}  Nh5 {[%clk 0:02:53]} 9. d4 {[%clk 0:02:56]}  f5 {[%clk 0:02:39]} 10. exf5 {[%clk 0:02:54]}  gxf5 {[%clk 0:02:40]} 11. dxe5 {[%clk 0:02:33]}  Nxe5 {[%clk 0:02:26]} 12. Nf4 {[%clk 0:02:23]}  Nxf4 {[%clk 0:01:59]} 13. Bxf4 {[%clk 0:02:24]}  Be6 {[%clk 0:01:45]} 14. c5 {[%clk 0:02:24]}  Kh8 {[%clk 0:01:33]} 15. cxd6 {[%clk 0:02:03]}  cxd6 {[%clk 0:01:33]} 16. Qa4 {[%clk 0:01:51]}  Nd3 {[%clk 0:01:01]} 17. Rad1 {[%clk 0:01:18]}  Nxf4 {[%clk 0:01:00]} 18. Qxf4 {[%clk 0:01:17]}  Be5 {[%clk 0:00:56]} 19. Qb4 {[%clk 0:01:17]}  Rg8 {[%clk 0:00:48]} 20. Rfe1 {[%clk 0:01:13]}  Qf6 {[%clk 0:00:41]} 21. Rd3 {[%clk 0:00:59]}  f4 {[%clk 0:00:35]} 22. gxf4 {[%clk 0:00:50]}  Qf7 {[%clk 0:00:06]} 23. fxe5 {[%clk 0:00:41]}  dxe5 {[%clk 0:00:07]} 24. Qd6 {[%clk 0:00:37]}  Rg5 {[%clk 0:00:00]} 25. Rxe5 {[%clk 0:00:29]} 1-0


[Site "https://www.chess.com"]

[Event "Titled Tuesday Blitz August 15 Early 2023"]
[White "Thiel, Thomas"]
[Black "Rodriguez, Santiago"]
[WhiteFideId "4615964"]
[BlackFideId "3000591"]
[WhiteElo "2229"]
[BlackElo "2475"]
[Result "0-1"]
[Round "3"]
[TimeControl "180+1"]
[Date "2023.08.15"]
[WhiteClock "0:02:06"]
[BlackClock "0:02:20"]
[Board "179"]

1. e4 {[%clk 0:03:00]}  d5 {[%clk 0:02:53]} 2. exd5 {[%clk 0:02:58]}  Nf6 {[%clk 0:02:52]} 3. d4 {[%clk 0:02:56]}  Bg4 {[%clk 0:02:44]} 4. f3 {[%clk 0:02:54]}  Bf5 {[%clk 0:02:43]} 5. c4 {[%clk 0:02:54]}  e6 {[%clk 0:02:40]} 6. Nc3 {[%clk 0:02:51]}  exd5 {[%clk 0:02:40]} 7. c5 {[%clk 0:02:51]}  Be7 {[%clk 0:02:34]} 8. Bd3 {[%clk 0:02:49]}  Bxd3 {[%clk 0:02:33]} 9. Qxd3 {[%clk 0:02:49]}  O-O {[%clk 0:02:34]} 10. Nge2 {[%clk 0:02:49]}  b6 {[%clk 0:02:34]} 11. b4 {[%clk 0:02:46]}  a5 {[%clk 0:02:35]} 12. bxa5 {[%clk 0:02:37]}  bxc5 {[%clk 0:02:34]} 13. O-O {[%clk 0:02:33]}  cxd4 {[%clk 0:02:33]} 14. Qxd4 {[%clk 0:02:27]}  c5 {[%clk 0:02:33]} 15. Qd1 {[%clk 0:02:24]}  d4 {[%clk 0:02:33]} 16. Ne4 {[%clk 0:02:19]}  Nxe4 {[%clk 0:02:26]} 17. fxe4 {[%clk 0:02:20]}  d3 {[%clk 0:02:21]} 18. Nf4 {[%clk 0:02:06]}  Qd4+ {[%clk 0:02:20]} 0-1


[Site "https://www.chess.com"]

[Event "Titled Tuesday Blitz August 15 Early 2023"]
[White "Batsiashvili, Nino"]
[Black "Floresvillar Gonzalez, Luis Migu"]
[WhiteFideId "13602993"]
[BlackFideId "5100542"]
[WhiteElo "2428"]
[BlackElo "2116"]
[Result "1-0"]
[Round "3"]
[TimeControl "180+1"]
[Date "2023.08.15"]
[WhiteClock "0:01:28"]
[BlackClock "0:00:00"]
[Board "181"]

1. d4 {[%clk 0:03:00]}  c6 {[%clk 0:02:46]} 2. e4 {[%clk 0:02:57]}  d5 {[%clk 0:02:42]} 3. exd5 {[%clk 0:02:56]}  cxd5 {[%clk 0:02:41]} 4. Bd3 {[%clk 0:02:57]}  Nc6 {[%clk 0:02:39]} 5. c3 {[%clk 0:02:57]}  Qc7 {[%clk 0:02:31]} 6. Ne2 {[%clk 0:02:53]}  Bg4 {[%clk 0:02:30]} 7. O-O {[%clk 0:02:52]}  Nf6 {[%clk 0:02:29]} 8. f3 {[%clk 0:02:52]}  Bh5 {[%clk 0:02:20]} 9. Qe1 {[%clk 0:02:50]}  e6 {[%clk 0:02:18]} 10. Qh4 {[%clk 0:02:48]}  Bd6 {[%clk 0:01:58]} 11. Bg5 {[%clk 0:02:34]}  Bg6 {[%clk 0:01:32]} 12. Bxg6 {[%clk 0:02:31]}  fxg6 {[%clk 0:01:31]} 13. Bxf6 {[%clk 0:02:25]}  gxf6 {[%clk 0:01:30]} 14. Qxf6 {[%clk 0:02:26]}  Kd7 {[%clk 0:01:14]} 15. Qh4 {[%clk 0:02:12]}  g5 {[%clk 0:01:08]} 16. Qh5 {[%clk 0:02:07]}  Raf8 {[%clk 0:01:02]} 17. Nd2 {[%clk 0:02:07]}  h6 {[%clk 0:01:00]} 18. c4 {[%clk 0:01:52]}  Qa5 {[%clk 0:00:48]} 19. cxd5 {[%clk 0:01:50]}  Qxd2 {[%clk 0:00:43]} 20. dxc6+ {[%clk 0:01:51]}  bxc6 {[%clk 0:00:42]} 21. Nc3 {[%clk 0:01:44]}  Qxb2 {[%clk 0:00:39]} 22. Ne4 {[%clk 0:01:39]}  Qxd4+ {[%clk 0:00:39]} 23. Kh1 {[%clk 0:01:39]}  Qc4 {[%clk 0:00:03]} 24. Rad1 {[%clk 0:01:33]}  Kc7 {[%clk 0:00:02]} 25. Nxd6 {[%clk 0:01:32]}  Qxa2 {[%clk 0:00:00]} 26. Ne4 {[%clk 0:01:28]} 1-0


[Site "https://www.chess.com"]

[Event "Titled Tuesday Blitz August 15 Early 2023"]
[White "Toktomushev, Teimur"]
[Black "Hartikainen, Jarmo"]
[WhiteFideId "14176726"]
[BlackFideId "503134"]
[WhiteElo "2424"]
[BlackElo "2112"]
[Result "1-0"]
[Round "3"]
[TimeControl "180+1"]
[Date "2023.08.15"]
[WhiteClock "0:00:07"]
[BlackClock "0:00:30"]
[Board "182"]

1. d4 {[%clk 0:02:59]}  d5 {[%clk 0:02:59]} 2. c4 {[%clk 0:03:00]}  c5 {[%clk 0:02:59]} 3. cxd5 {[%clk 0:02:36]}  Qxd5 {[%clk 0:02:49]} 4. Nf3 {[%clk 0:02:36]}  Nf6 {[%clk 0:02:42]} 5. Nc3 {[%clk 0:02:34]}  Qd8 {[%clk 0:02:33]} 6. d5 {[%clk 0:02:20]}  e6 {[%clk 0:02:24]} 7. e4 {[%clk 0:02:15]}  exd5 {[%clk 0:02:17]} 8. e5 {[%clk 0:01:13]}  d4 {[%clk 0:02:15]} 9. exf6 {[%clk 0:01:10]}  dxc3 {[%clk 0:02:14]} 10. Bb5+ {[%clk 0:00:30]}  Bd7 {[%clk 0:02:09]} 11. Qe2+ {[%clk 0:00:26]}  Be7 {[%clk 0:02:03]} 12. fxe7 {[%clk 0:00:21]}  Qxe7 {[%clk 0:02:03]} 13. Bxd7+ {[%clk 0:00:18]}  Nxd7 {[%clk 0:02:02]} 14. Qxe7+ {[%clk 0:00:18]}  Kxe7 {[%clk 0:02:03]} 15. bxc3 {[%clk 0:00:19]}  Rhe8 {[%clk 0:02:00]} 16. O-O {[%clk 0:00:19]}  Kf8 {[%clk 0:02:00]} 17. Be3 {[%clk 0:00:19]}  b6 {[%clk 0:02:00]} 18. Rfd1 {[%clk 0:00:19]}  Nf6 {[%clk 0:01:59]} 19. h3 {[%clk 0:00:18]}  Ne4 {[%clk 0:01:57]} 20. c4 {[%clk 0:00:16]}  Rad8 {[%clk 0:01:54]} 21. Bf4 {[%clk 0:00:04]}  f6 {[%clk 0:01:52]} 22. g4 {[%clk 0:00:02]}  g5 {[%clk 0:01:51]} 23. Bg3 {[%clk 0:00:01]}  Kf7 {[%clk 0:01:49]} 24. Kg2 {[%clk 0:00:02]}  h6 {[%clk 0:01:49]} 25. Rxd8 {[%clk 0:00:02]}  Rxd8 {[%clk 0:01:49]} 26. Re1 {[%clk 0:00:03]}  Nd6 {[%clk 0:01:37]} 27. Rd1 {[%clk 0:00:02]}  Nb7 {[%clk 0:01:37]} 28. Rxd8 {[%clk 0:00:03]}  Nxd8 {[%clk 0:01:38]} 29. Bb8 {[%clk 0:00:03]}  Nc6 {[%clk 0:01:37]} 30. Bc7 {[%clk 0:00:03]}  Ke7 {[%clk 0:01:31]} 31. Nd2 {[%clk 0:00:03]}  Kd7 {[%clk 0:01:32]} 32. Bg3 {[%clk 0:00:02]}  a6 {[%clk 0:01:29]} 33. f4 {[%clk 0:00:03]}  b5 {[%clk 0:01:28]} 34. cxb5 {[%clk 0:00:03]}  axb5 {[%clk 0:01:28]} 35. f5 {[%clk 0:00:04]}  Nb4 {[%clk 0:01:25]} 36. Ne4 {[%clk 0:00:03]}  Nxa2 {[%clk 0:01:19]} 37. Nxc5+ {[%clk 0:00:03]}  Kc6 {[%clk 0:01:19]} 38. Ne4 {[%clk 0:00:02]}  b4 {[%clk 0:01:15]} 39. Nxf6 {[%clk 0:00:03]}  Nc3 {[%clk 0:01:01]} 40. Be5 {[%clk 0:00:03]}  Nd5 {[%clk 0:00:46]} 41. Nxd5 {[%clk 0:00:03]}  Kxd5 {[%clk 0:00:47]} 42. Bb2 {[%clk 0:00:03]}  b3 {[%clk 0:00:47]} 43. f6 {[%clk 0:00:03]}  Ke6 {[%clk 0:00:47]} 44. Kf3 {[%clk 0:00:04]}  Kf7 {[%clk 0:00:46]} 45. Ke4 {[%clk 0:00:04]}  Ke6 {[%clk 0:00:47]} 46. Ba1 {[%clk 0:00:04]}  Kf7 {[%clk 0:00:46]} 47. Kf5 {[%clk 0:00:05]}  Ke8 {[%clk 0:00:33]} 48. Kg6 {[%clk 0:00:04]}  b2 {[%clk 0:00:34]} 49. Bxb2 {[%clk 0:00:04]}  Kf8 {[%clk 0:00:35]} 50. Ba3+ {[%clk 0:00:03]}  Ke8 {[%clk 0:00:34]} 51. f7+ {[%clk 0:00:04]}  Kd7 {[%clk 0:00:35]} 52. f8=Q {[%clk 0:00:05]}  Kc6 {[%clk 0:00:36]} 53. Qc5+ {[%clk 0:00:05]}  Kd7 {[%clk 0:00:36]} 54. Qd6+ {[%clk 0:00:05]}  Kc8 {[%clk 0:00:35]} 55. Bc5 {[%clk 0:00:04]}  Kb7 {[%clk 0:00:34]} 56. Qb6+ {[%clk 0:00:05]}  Kc8 {[%clk 0:00:33]} 57. Kf7 {[%clk 0:00:05]}  h5 {[%clk 0:00:32]} 58. gxh5 {[%clk 0:00:04]}  g4 {[%clk 0:00:32]} 59. hxg4 {[%clk 0:00:05]}  Kd7 {[%clk 0:00:31]} 60. Qb7+ {[%clk 0:00:06]}  Kd8 {[%clk 0:00:30]} 61. Bb6# {[%clk 0:00:07]} 1-0


[Site "https://www.chess.com"]

[Event "Titled Tuesday Blitz August 15 Early 2023"]
[White "Shohat, Yotam"]
[Black "Vila Dupla, Aurelio"]
[WhiteFideId "2813955"]
[BlackFideId "2203383"]
[WhiteElo "2424"]
[BlackElo "2102"]
[Result "1-0"]
[Round "3"]
[TimeControl "180+1"]
[Date "2023.08.15"]
[WhiteClock "0:01:42"]
[BlackClock "0:01:44"]
[Board "183"]

1. e4 {[%clk 0:03:00]}  c5 {[%clk 0:02:59]} 2. Nf3 {[%clk 0:03:01]}  d6 {[%clk 0:02:59]} 3. d4 {[%clk 0:03:01]}  cxd4 {[%clk 0:02:59]} 4. Nxd4 {[%clk 0:03:02]}  Nf6 {[%clk 0:02:59]} 5. Nc3 {[%clk 0:03:03]}  g6 {[%clk 0:02:59]} 6. Be3 {[%clk 0:03:02]}  Bg7 {[%clk 0:02:59]} 7. f3 {[%clk 0:03:03]}  O-O {[%clk 0:02:59]} 8. Qd2 {[%clk 0:03:03]}  Nc6 {[%clk 0:03:00]} 9. O-O-O {[%clk 0:03:03]}  Nxd4 {[%clk 0:03:00]} 10. Bxd4 {[%clk 0:03:03]}  Be6 {[%clk 0:03:00]} 11. Kb1 {[%clk 0:03:03]}  Qc7 {[%clk 0:03:00]} 12. h4 {[%clk 0:03:02]}  Rfc8 {[%clk 0:03:01]} 13. h5 {[%clk 0:03:01]}  Qa5 {[%clk 0:03:00]} 14. hxg6 {[%clk 0:02:57]}  hxg6 {[%clk 0:03:00]} 15. a3 {[%clk 0:02:49]}  Bc4 {[%clk 0:02:58]} 16. Bxc4 {[%clk 0:02:25]}  Rxc4 {[%clk 0:02:59]} 17. Qd3 {[%clk 0:02:25]}  Rac8 {[%clk 0:02:54]} 18. Nd5 {[%clk 0:01:53]}  Nxd5 {[%clk 0:02:31]} 19. Bxg7 {[%clk 0:01:51]}  Kxg7 {[%clk 0:02:29]} 20. exd5 {[%clk 0:01:49]}  Rxc2 {[%clk 0:02:23]} 21. Qd4+ {[%clk 0:01:49]}  f6 {[%clk 0:02:20]} 22. Qe3 {[%clk 0:01:48]}  Kf7 {[%clk 0:01:44]} 23. Qe6+ {[%clk 0:01:42]} 1-0


[Site "https://www.chess.com"]

[Event "Titled Tuesday Blitz August 15 Early 2023"]
[White "Andreev, Konstantin"]
[Black "Saucey, Michel"]
[WhiteFideId "24239305"]
[BlackFideId "601845"]
[WhiteElo "2624"]
[BlackElo "2303"]
[Result "1-0"]
[Round "3"]
[TimeControl "180+1"]
[Date "2023.08.15"]
[WhiteClock "0:02:00"]
[BlackClock "0:00:00"]
[Board "190"]

1. e4 {[%clk 0:03:00]}  c5 {[%clk 0:02:59]} 2. Nf3 {[%clk 0:03:01]}  e6 {[%clk 0:02:58]} 3. d4 {[%clk 0:03:02]}  cxd4 {[%clk 0:02:58]} 4. Nxd4 {[%clk 0:03:01]}  Nc6 {[%clk 0:02:59]} 5. Nc3 {[%clk 0:03:02]}  Qc7 {[%clk 0:02:58]} 6. g4 {[%clk 0:03:03]}  a6 {[%clk 0:02:57]} 7. h4 {[%clk 0:03:02]}  b5 {[%clk 0:02:55]} 8. Nxc6 {[%clk 0:03:03]}  dxc6 {[%clk 0:02:55]} 9. a3 {[%clk 0:03:04]}  Bb7 {[%clk 0:02:55]} 10. Qf3 {[%clk 0:03:03]}  Ne7 {[%clk 0:02:51]} 11. Bf4 {[%clk 0:03:03]}  e5 {[%clk 0:02:50]} 12. Be3 {[%clk 0:03:04]}  Ng6 {[%clk 0:02:47]} 13. h5 {[%clk 0:03:04]}  Nf4 {[%clk 0:02:47]} 14. Bxf4 {[%clk 0:03:04]}  exf4 {[%clk 0:02:47]} 15. O-O-O {[%clk 0:03:05]}  Bd6 {[%clk 0:02:37]} 16. g5 {[%clk 0:03:01]}  O-O-O {[%clk 0:02:33]} 17. Bh3+ {[%clk 0:02:57]}  Kb8 {[%clk 0:02:33]} 18. Ne2 {[%clk 0:02:58]}  Be5 {[%clk 0:02:31]} 19. c3 {[%clk 0:02:55]}  c5 {[%clk 0:02:24]} 20. Bg2 {[%clk 0:02:55]}  Qe7 {[%clk 0:01:58]} 21. Qg4 {[%clk 0:02:50]}  Qc7 {[%clk 0:01:55]} 22. Kb1 {[%clk 0:02:48]}  Bc8 {[%clk 0:01:46]} 23. Qf3 {[%clk 0:02:44]}  Be6 {[%clk 0:01:45]} 24. Bh3 {[%clk 0:02:43]}  Bb3 {[%clk 0:01:42]} 25. Rxd8+ {[%clk 0:02:42]}  Rxd8 {[%clk 0:01:42]} 26. Nc1 {[%clk 0:02:43]}  c4 {[%clk 0:01:37]} 27. Nxb3 {[%clk 0:02:40]}  cxb3 {[%clk 0:01:37]} 28. Rd1 {[%clk 0:02:41]}  Kb7 {[%clk 0:01:20]} 29. Rd5 {[%clk 0:02:34]}  f6 {[%clk 0:01:13]} 30. g6 {[%clk 0:02:32]}  hxg6 {[%clk 0:01:10]} 31. hxg6 {[%clk 0:02:33]}  Rxd5 {[%clk 0:01:06]} 32. exd5 {[%clk 0:02:34]}  Qd6 {[%clk 0:01:00]} 33. Qg4 {[%clk 0:02:34]}  Kb6 {[%clk 0:00:58]} 34. Qc8 {[%clk 0:02:34]}  Qc5 {[%clk 0:00:51]} 35. Qe6+ {[%clk 0:02:28]}  Ka5 {[%clk 0:00:45]} 36. Qg4 {[%clk 0:02:09]}  Qxf2 {[%clk 0:00:38]} 37. Qd1 {[%clk 0:02:07]}  Ka4 {[%clk 0:00:20]} 38. d6 {[%clk 0:02:05]}  Bxd6 {[%clk 0:00:19]} 39. Be6 {[%clk 0:02:03]}  Qc2+ {[%clk 0:00:18]} 40. Qxc2 {[%clk 0:02:03]}  bxc2+ {[%clk 0:00:18]} 41. Kxc2 {[%clk 0:02:03]}  f3 {[%clk 0:00:18]} 42. Bg4 {[%clk 0:02:03]}  f2 {[%clk 0:00:18]} 43. Bh3 {[%clk 0:02:04]}  Ka5 {[%clk 0:00:14]} 44. Kd3 {[%clk 0:02:04]}  Kb6 {[%clk 0:00:14]} 45. Kd4 {[%clk 0:02:05]}  Kc6 {[%clk 0:00:12]} 46. Bg2+ {[%clk 0:02:06]}  Kd7 {[%clk 0:00:12]} 47. Kd5 {[%clk 0:02:06]}  Be5 {[%clk 0:00:10]} 48. Bh3+ {[%clk 0:02:02]}  Ke7 {[%clk 0:00:04]} 49. Kc6 {[%clk 0:01:57]}  f5 {[%clk 0:00:03]} 50. Kb6 {[%clk 0:01:57]}  Kf6 {[%clk 0:00:04]} 51. Kxa6 {[%clk 0:01:57]}  Kxg6 {[%clk 0:00:04]} 52. Kxb5 {[%clk 0:01:58]}  Kf6 {[%clk 0:00:05]} 53. a4 {[%clk 0:01:59]}  g5 {[%clk 0:00:05]} 54. a5 {[%clk 0:01:59]}  g4 {[%clk 0:00:05]} 55. Bf1 {[%clk 0:01:59]}  f4 {[%clk 0:00:03]} 56. a6 {[%clk 0:01:59]}  Bb8 {[%clk 0:00:04]} 57. Kb6 {[%clk 0:02:00]}  f3 {[%clk 0:00:00]} 58. Kb7 {[%clk 0:02:00]} 1-0


[Site "https://www.chess.com"]

[Event "Titled Tuesday Blitz August 15 Early 2023"]
[White "Ivanov, Alexey"]
[Black "Blokhin, Sofia"]
[WhiteFideId "4167635"]
[BlackFideId "4508190"]
[WhiteElo "2601"]
[BlackElo "2296"]
[Result "1-0"]
[Round "3"]
[TimeControl "180+1"]
[Date "2023.08.15"]
[WhiteClock "0:02:43"]
[BlackClock "0:02:11"]
[Board "191"]

1. Nf3 {[%clk 0:03:00]}  g6 {[%clk 0:02:59]} 2. c4 {[%clk 0:03:00]}  Bg7 {[%clk 0:02:57]} 3. Nc3 {[%clk 0:02:58]}  f5 {[%clk 0:02:57]} 4. d4 {[%clk 0:02:57]}  Nf6 {[%clk 0:02:57]} 5. g3 {[%clk 0:02:55]}  O-O {[%clk 0:02:57]} 6. Bg2 {[%clk 0:02:56]}  d6 {[%clk 0:02:56]} 7. O-O {[%clk 0:02:56]}  Nc6 {[%clk 0:02:57]} 8. d5 {[%clk 0:02:53]}  Na5 {[%clk 0:02:55]} 9. Nd2 {[%clk 0:02:51]}  c5 {[%clk 0:02:47]} 10. Qc2 {[%clk 0:02:50]}  a6 {[%clk 0:02:43]} 11. b3 {[%clk 0:02:49]}  Rb8 {[%clk 0:02:40]} 12. Rb1 {[%clk 0:02:50]}  b5 {[%clk 0:02:39]} 13. Bb2 {[%clk 0:02:50]}  bxc4 {[%clk 0:02:25]} 14. bxc4 {[%clk 0:02:49]}  e5 {[%clk 0:02:18]} 15. Ba1 {[%clk 0:02:46]}  e4 {[%clk 0:02:11]} 16. Rxb8 {[%clk 0:02:43]} 1-0


[Site "https://www.chess.com"]